[Event "Hungarian Rapid-ch 2022"]
[Site "Ajka"]
[Date "2022.07.16"]
[Round "8.29"]
[White "Kovacs, Klara"]
[Black "Kiss, Gergely"]
[Result "1-0"]
[ECO "A46"]
[WhiteElo "2098"]
[BlackElo "2166"]
[Annotator "ChessBase"]
[PlyCount "59"]
[EventDate "2022.07.15"]
[EventType "swiss"]
[EventCountry "HUN"]
[SourceTitle "playchess.com"]
[Source "ChessBase"]
[SourceQuality "1"]
[TimeControl "900+10"]

1. d4 {[%emt 0:00:14]} Nf6 {[%emt 0:00:15]} 2. Nf3 {[%emt 0:00:02]} d5 {[%emt 0:00:05]} 3. g3 {[%emt 0:00:02]} c5 {[%emt 0:00:14]} 4. Bg2 {[%emt 0:00:05]} e6 {[%emt 0:00:03]} 5. O-O {[%emt 0:00:03]} Nc6 {[%emt 0:00:09]} 6. c4 {[%emt 0:00:06]} Be7 {[%emt 0:00:11]} 7. dxc5 {[%emt 0:00:05]} Bxc5 {[%emt 0:00:03]} 8. cxd5 {[%emt 0:00:02]} exd5 {[%emt 0:00:09]} 9. Bg5 {[%emt 0:00:04]} Be6 {[%emt 0:00:10]} 10. Nc3 {[%emt 0:00:04]} d4 {[%emt 0:00:32]} 11. Ne4 {[%emt 0:00:56]} Be7 {[%emt 0:00:05]} 12. Nxf6+ {[%emt 0:00:03]} Bxf6 {[%emt 0:00:05]} 13. Bxf6 {[%emt 0:00:01]} Qxf6 {[%emt 0:00:02]} 14. b4 {[%emt 0:00:06]} Rd8 {[%emt 0:01:15]} 15. b5 {[%emt 0:00:19]} Ne7 {[%emt 0:00:13]} 16. Qa4 {[%emt 0:00:07]} Bd5 {[%emt 0:00:40]} 17. Rfd1 {[%emt 0:00:46]} O-O {[%emt 0:00:19]} 18. Qxa7 {[%emt 0:00:32]} d3 {[%emt 0:00:05]} 19. Qe3 {[%emt 0:01:05]} dxe2 {[%emt 0:01:11]} 20. Qxe2 {[%emt 0:00:08]} Rfe8 {[%emt 0:01:36]} 21. Qe5 {[%emt 0:00:52]} Qb6 {[%emt 0:00:34]} 22. a4 {[%emt 0:01:03]} Bb3 {[%emt 0:01:40]} 23. Rxd8 {[%emt 0:00:22]} Qxd8 {[%emt 0:00:05]} 24. Qe3 {[%emt 0:00:53]} Bxa4 {[%emt 0:00:37]} 25. Ng5 {[%emt 0:01:00]} Bc2 {[%emt 0:03:14]} 26. Bxb7 {[%emt 0:00:25]} h6 {[%emt 0:00:49]} 27. Nf3 {[%emt 0:01:18]} Nf5 {[%emt 0:00:26]} 28. Qc5 {[%emt 0:00:20]} Re2 {[%emt 0:00:47]} 29. Ra8 {[%emt 0:00:19]} Qxa8 {[%emt 0:00:01]} 30. Bxa8 {[%emt 0:00:04]} 1-0

[Event "Hungarian Rapid-ch 2022"]
[Site "Ajka"]
[Date "2022.07.16"]
[Round "8.30"]
[White "Majoros, Rozsa Evelin"]
[Black "Udvardi, Zalan"]
[Result "0-1"]
[ECO "B40"]
[WhiteElo "2059"]
[BlackElo "2310"]
[Annotator "ChessBase"]
[PlyCount "60"]
[EventDate "2022.07.15"]
[EventType "swiss"]
[EventCountry "HUN"]
[SourceTitle "playchess.com"]
[Source "ChessBase"]
[SourceQuality "1"]
[TimeControl "900+10"]

1. e4 {[%emt 0:00:11]} c5 {[%emt 0:00:10]} 2. Nf3 {[%emt 0:00:04]} e6 {[%emt 0:00:00]} 3. d4 {[%emt 0:00:02]} cxd4 {[%emt 0:00:01]} 4. Nxd4 {[%emt 0:00:02]} Nf6 {[%emt 0:00:01]} 5. Nc3 {[%emt 0:00:02]} Nc6 {[%emt 0:00:01]} 6. Ndb5 {[%emt 0:00:14]} Bc5 {[%emt 0:00:00]} 7. Bf4 {[%emt 0:01:08]} O-O {[%emt 0:00:02]} 8. e5 {[%emt 0:01:41]} a6 {[%emt 0:00:32]} 9. exf6 {[%emt 0:00:46]} Qxf6 {[%emt 0:00:47]} 10. Ne4 {[%emt 0:02:46]} Qxf4 {[%emt 0:00:08]} 11. Nxc5 {[%emt 0:00:05]} Qe5+ {[%emt 0:01:12]} 12. Be2 {[%emt 0:00:23]} Qxc5 {[%emt 0:00:17]} 13. Nc3 {[%emt 0:01:39]} Nd4 {[%emt 0:00:03]} 14. O-O {[%emt 0:00:24]} Nxe2+ {[%emt 0:00:03]} 15. Qxe2 {[%emt 0:00:13]} d5 {[%emt 0:00:05]} 16. Rad1 {[%emt 0:00:46]} Bd7 {[%emt 0:00:03]} 17. Rfe1 {[%emt 0:00:09]} Rac8 {[%emt 0:00:03]} 18. Qg4 {[%emt 0:01:09]} Bc6 {[%emt 0:00:28]} 19. h4 {[%emt 0:00:21]} Rcd8 {[%emt 0:00:02]} 20. h5 {[%emt 0:00:16]} h6 {[%emt 0:00:11]} 21. Rd3 {[%emt 0:00:55]} Qe7 {[%emt 0:00:13]} 22. Qd4 {[%emt 0:00:22]} Rfe8 {[%emt 0:00:14]} 23. Rg3 {[%emt 0:00:37]} e5 {[%emt 0:00:11]} 24. Qg4 {[%emt 0:00:09]} Qf6 {[%emt 0:00:07]} 25. Rf3 {[%emt 0:00:25]} Qe6 {[%emt 0:00:04]} 26. Rf5 {[%emt 0:00:42]} Bd7 {[%emt 0:00:49]} 27. Qf3 {[%emt 0:01:52]} Qxf5 {[%emt 0:00:02]} 28. Qxd5 {[%emt 0:00:02]} Bc6 {[%emt 0:00:05]} 29. Qc5 {[%emt 0:00:07]} Qg5 {[%emt 0:00:06]} 30. g3 {[%emt 0:00:02]} Qxh5 {[%emt 0:00:03]} 0-1

[Event "Hungarian Rapid-ch 2022"]
[Site "Ajka"]
[Date "2022.07.16"]
[Round "9.1"]
[White "Czebe, Attila"]
[Black "Berkes, Ferenc"]
[Result "1/2-1/2"]
[ECO "B11"]
[WhiteElo "2385"]
[BlackElo "2649"]
[Annotator "ChessBase"]
[PlyCount "56"]
[EventDate "2022.07.15"]
[EventType "swiss"]
[EventCountry "HUN"]
[SourceTitle "playchess.com"]
[Source "ChessBase"]
[SourceQuality "1"]
[TimeControl "900+10"]

1. e4 {[%emt 0:00:14]} c6 {[%emt 0:00:11]} 2. Nc3 {[%emt 0:00:39]} d5 {[%emt 0:00:01]} 3. Nf3 {[%emt 0:00:01]} Bg4 {[%emt 0:00:02]} 4. h3 {[%emt 0:00:02]} Bxf3 {[%emt 0:00:01]} 5. Qxf3 {[%emt 0:00:02]} e6 {[%emt 0:00:02]} 6. Be2 {[%emt 0:00:43]} Bc5 {[%emt 0:00:10]} 7. O-O {[%emt 0:00:10]} Nd7 {[%emt 0:00:09]} 8. Qg3 {[%emt 0:00:12]} Bd4 {[%emt 0:00:02]} 9. d3 {[%emt 0:00:08]} Ne7 {[%emt 0:00:14]} 10. Kh1 {[%emt 0:00:12]} O-O {[%emt 0:00:19]} 11. f4 {[%emt 0:00:01]} f5 {[%emt 0:00:28]} 12. Be3 {[%emt 0:00:19]} Bxe3 {[%emt 0:00:25]} 13. Qxe3 {[%emt 0:00:02]} Qb6 {[%emt 0:00:03]} 14. Qxb6 {[%emt 0:00:14]} axb6 {[%emt 0:00:01]} 15. a3 {[%emt 0:00:18]} b5 {[%emt 0:00:18]} 16. Rae1 {[%emt 0:00:02]} Nc5 {[%emt 0:00:48]} 17. exd5 {[%emt 0:00:25]} exd5 {[%emt 0:00:05]} 18. Bh5 {[%emt 0:00:24]} Nc8 {[%emt 0:00:22]} 19. Ne2 {[%emt 0:00:32]} g6 {[%emt 0:00:16]} 20. Bf3 {[%emt 0:00:01]} Ne6 {[%emt 0:00:12]} 21. g3 {[%emt 0:00:34]} Kf7 {[%emt 0:00:25]} 22. Bg2 {[%emt 0:00:08]} Nb6 {[%emt 0:00:45]} 23. Ng1 {[%emt 0:00:14]} Nd7 {[%emt 0:05:33]} 24. Nf3 {[%emt 0:00:08]} Rae8 {[%emt 0:00:01]} 25. Kg1 {[%emt 0:00:21]} Kf6 {[%emt 0:00:13]} 26. h4 {[%emt 0:00:10]} Nec5 {[%emt 0:00:18]} 27. Ng5 {[%emt 0:00:39]} Kg7 {[%emt 0:00:55]} 28. h5 {[%emt 0:01:19]} Rg8 {[%emt 0:01:54]} 1/2-1/2

[Event "Hungarian Rapid-ch 2022"]
[Site "Ajka"]
[Date "2022.07.16"]
[Round "9.2"]
[White "Gledura, Benjamin"]
[Black "Aczel, Gergely"]
[Result "1/2-1/2"]
[ECO "E00"]
[WhiteElo "2637"]
[BlackElo "2499"]
[Annotator "ChessBase"]
[PlyCount "82"]
[EventDate "2022.07.15"]
[EventType "swiss"]
[EventCountry "HUN"]
[SourceTitle "playchess.com"]
[Source "ChessBase"]
[SourceQuality "1"]
[TimeControl "900+10"]

1. d4 {[%emt 0:00:13]} Nf6 {[%emt 0:00:11]} 2. c4 {[%emt 0:00:02]} e6 {[%emt 0:00:01]} 3. a3 {[%emt 0:00:07]} d5 {[%emt 0:00:14]} 4. cxd5 {[%emt 0:00:02]} exd5 {[%emt 0:00:03]} 5. Nc3 {[%emt 0:00:02]} c6 {[%emt 0:00:08]} 6. Bf4 {[%emt 0:00:04]} Bd6 {[%emt 0:00:19]} 7. Bxd6 {[%emt 0:00:03]} Qxd6 {[%emt 0:00:02]} 8. e3 {[%emt 0:00:02]} Bf5 {[%emt 0:00:16]} 9. Qf3 {[%emt 0:00:05]} Bg6 {[%emt 0:00:35]} 10. h4 {[%emt 0:00:03]} Bh5 {[%emt 0:01:18]} 11. Qf4 {[%emt 0:00:03]} Qxf4 {[%emt 0:02:53]} 12. exf4 {[%emt 0:00:02]} Bg4 {[%emt 0:00:04]} 13. f3 {[%emt 0:00:23]} Bc8 {[%emt 0:00:03]} 14. h5 {[%emt 0:02:22]} Nbd7 {[%emt 0:00:27]} 15. O-O-O {[%emt 0:00:17]} O-O {[%emt 0:00:04]} 16. g4 {[%emt 0:00:30]} Ne8 {[%emt 0:00:24]} 17. Nh3 {[%emt 0:01:13]} Nd6 {[%emt 0:00:03]} 18. Nf2 {[%emt 0:00:05]} Nb6 {[%emt 0:00:31]} 19. Nd3 {[%emt 0:01:30]} Bd7 {[%emt 0:00:16]} 20. f5 {[%emt 0:02:26]} h6 {[%emt 0:01:25]} 21. Ne5 {[%emt 0:01:02]} Rfe8 {[%emt 0:00:33]} 22. Bd3 {[%emt 0:00:20]} f6 {[%emt 0:01:50]} 23. Nxd7 {[%emt 0:00:02]} Nxd7 {[%emt 0:00:02]} 24. Rde1 {[%emt 0:00:01]} Kf7 {[%emt 0:00:26]} 25. Kd2 {[%emt 0:00:03]} a5 {[%emt 0:00:51]} 26. Ne2 {[%emt 0:01:03]} Nf8 {[%emt 0:01:42]} 27. Nf4 {[%emt 0:00:03]} Rxe1 {[%emt 0:00:13]} 28. Rxe1 {[%emt 0:00:02]} Re8 {[%emt 0:00:01]} 29. Rxe8 {[%emt 0:00:38]} Nxe8 {[%emt 0:00:18]} 30. a4 {[%emt 0:01:22]} Nc7 {[%emt 0:00:08]} 31. Kc3 {[%emt 0:00:05]} Nd7 {[%emt 0:00:30]} 32. b4 {[%emt 0:00:08]} axb4+ {[%emt 0:01:03]} 33. Kxb4 {[%emt 0:00:02]} b6 {[%emt 0:00:04]} 34. Kc3 {[%emt 0:03:17]} Ke7 {[%emt 0:00:09]} 35. Ng6+ {[%emt 0:00:32]} Kd6 {[%emt 0:00:02]} 36. f4 {[%emt 0:00:02]} c5 {[%emt 0:00:23]} 37. Bb5 {[%emt 0:00:18]} cxd4+ {[%emt 0:01:40]} 38. Kxd4 {[%emt 0:00:02]} Nc5 {[%emt 0:00:06]} 39. Nf8 {[%emt 0:00:50]} Nb3+ {[%emt 0:00:43]} 40. Kc3 {[%emt 0:00:03]} Nc5 {[%emt 0:00:02]} 41. Kd4 {[%emt 0:00:05]} Nb3+ {[%emt 0:00:47]} 1/2-1/2

[Event "Hungarian Rapid-ch 2022"]
[Site "Ajka"]
[Date "2022.07.16"]
[Round "9.3"]
[White "Balog, Imre"]
[Black "Jakab, Attila"]
[Result "1-0"]
[ECO "D02"]
[WhiteElo "2594"]
[BlackElo "2311"]
[Annotator "ChessBase"]
[PlyCount "56"]
[EventDate "2022.07.15"]
[EventType "swiss"]
[EventCountry "HUN"]
[SourceTitle "playchess.com"]
[Source "ChessBase"]
[SourceQuality "1"]
[TimeControl "900+10"]

1. d4 {[%emt 0:00:13]} d5 {[%emt 0:00:17]} 2. Nf3 {[%emt 0:00:02]} e6 {[%emt 0:00:03]} 3. Bf4 {[%emt 0:00:10]} Bd6 {[%emt 0:00:02]} 4. Bg3 {[%emt 0:00:17]} Ne7 {[%emt 0:00:09]} 5. Nbd2 {[%emt 0:00:06]} c5 {[%emt 0:00:35]} 6. e4 {[%emt 0:00:31]} Bxg3 {[%emt 0:00:23]} 7. hxg3 {[%emt 0:00:02]} cxd4 {[%emt 0:00:12]} 8. Nxd4 {[%emt 0:01:09]} Nbc6 {[%emt 0:00:32]} 9. Bb5 {[%emt 0:00:09]} Qb6 {[%emt 0:00:24]} 10. c3 {[%emt 0:00:08]} Bd7 {[%emt 0:00:06]} 11. exd5 {[%emt 0:00:46]} Nxd4 {[%emt 0:02:36]} 12. Bxd7+ {[%emt 0:00:02]} Kxd7 {[%emt 0:00:01]} 13. cxd4 {[%emt 0:00:04]} Nxd5 {[%emt 0:00:03]} 14. Qg4 {[%emt 0:00:43]} g6 {[%emt 0:00:29]} 15. O-O {[%emt 0:00:09]} h5 {[%emt 0:01:26]} 16. Qe4 {[%emt 0:01:26]} Rhc8 {[%emt 0:05:18]} 17. b3 {[%emt 0:00:46]} Ke7 {[%emt 0:00:06]} 18. Nc4 {[%emt 0:00:05]} Qc7 {[%emt 0:00:16]} 19. Rad1 {[%emt 0:01:57]} Kf8 {[%emt 0:00:39]} 20. Rd3 {[%emt 0:00:02]} Nf6 {[%emt 0:00:42]} 21. Qh4 {[%emt 0:00:15]} Kg7 {[%emt 0:00:05]} 22. Ne5 {[%emt 0:00:59]} Nd7 {[%emt 0:00:28]} 23. Re1 {[%emt 0:01:52]} Qa5 {[%emt 0:01:46]} 24. Re2 {[%emt 0:02:35]} Rc1+ {[%emt 0:00:19]} 25. Kh2 {[%emt 0:00:01]} Rd8 {[%emt 0:00:46]} 26. Nxf7 {[%emt 0:01:37]} Kxf7 {[%emt 0:00:46]} 27. Rf3+ {[%emt 0:00:21]} Kg8 {[%emt 0:00:53]} 28. Qf4 {[%emt 0:01:16]} Rc6 1-0

[Event "Hungarian Rapid-ch 2022"]
[Site "Ajka"]
[Date "2022.07.16"]
[Round "9.4"]
[White "Hera, Imre Jr."]
[Black "Csonka, Balazs"]
[Result "1/2-1/2"]
[ECO "A08"]
[WhiteElo "2568"]
[BlackElo "2495"]
[Annotator "ChessBase"]
[PlyCount "67"]
[EventDate "2022.07.15"]
[EventType "swiss"]
[EventCountry "HUN"]
[SourceTitle "playchess.com"]
[Source "ChessBase"]
[SourceQuality "1"]
[TimeControl "900+10"]

1. Nf3 {[%emt 0:00:23]} d5 {[%emt 0:00:13]} 2. g3 {[%emt 0:00:03]} Nf6 {[%emt 0:00:03]} 3. Bg2 {[%emt 0:00:02]} e6 {[%emt 0:00:02]} 4. O-O {[%emt 0:00:11]} Be7 {[%emt 0:00:02]} 5. d3 {[%emt 0:00:02]} O-O {[%emt 0:00:06]} 6. Nbd2 {[%emt 0:00:01]} c5 {[%emt 0:00:01]} 7. e4 {[%emt 0:00:02]} Nc6 {[%emt 0:00:02]} 8. Re1 {[%emt 0:00:02]} b5 {[%emt 0:00:02]} 9. e5 {[%emt 0:00:02]} Nd7 {[%emt 0:00:02]} 10. Nf1 {[%emt 0:00:02]} Bb7 {[%emt 0:00:03]} 11. h4 {[%emt 0:00:05]} Qc7 {[%emt 0:00:03]} 12. Bf4 {[%emt 0:00:02]} Rfc8 {[%emt 0:00:03]} 13. N1h2 {[%emt 0:02:18]} a5 {[%emt 0:00:58]} 14. h5 {[%emt 0:00:06]} h6 {[%emt 0:00:03]} 15. Ng4 {[%emt 0:00:30]} Qd8 {[%emt 0:00:13]} 16. Qd2 {[%emt 0:00:23]} Bf8 {[%emt 0:03:20]} 17. Ngh2 {[%emt 0:00:03]} Ra6 {[%emt 0:01:19]} 18. g4 {[%emt 0:00:11]} Be7 {[%emt 0:00:10]} 19. Re2 {[%emt 0:02:12]} a4 {[%emt 0:00:28]} 20. Rae1 {[%emt 0:02:03]} a3 {[%emt 0:01:03]} 21. b3 {[%emt 0:00:01]} c4 {[%emt 0:00:59]} 22. bxc4 {[%emt 0:00:48]} bxc4 {[%emt 0:00:15]} 23. dxc4 {[%emt 0:00:02]} Nb6 {[%emt 0:02:24]} 24. g5 {[%emt 0:01:57]} Nxc4 {[%emt 0:00:03]} 25. Qc1 {[%emt 0:00:00]} hxg5 {[%emt 0:00:52]} 26. Bxg5 {[%emt 0:00:22]} N6xe5 {[%emt 0:04:11]} 27. Bxe7 {[%emt 0:01:10]} Nxf3+ {[%emt 0:00:03]} 28. Nxf3 {[%emt 0:00:01]} Qxe7 {[%emt 0:00:02]} 29. h6 {[%emt 0:00:13]} Qf6 {[%emt 0:00:28]} 30. hxg7 {[%emt 0:00:07]} Qxg7 {[%emt 0:00:06]} 31. Kh2 {[%emt 0:00:39]} Kf8 {[%emt 0:01:17]} 32. Qf4 {[%emt 0:01:22]} Ke7 {[%emt 0:00:36]} 33. Bh3 {[%emt 0:00:23]} Qf6 {[%emt 0:00:26]} 34. Qg3 {[%emt 0:00:02]} 1/2-1/2

[Event "Hungarian Rapid-ch 2022"]
[Site "Ajka"]
[Date "2022.07.16"]
[Round "9.5"]
[White "Kozak, Adam"]
[Black "Tolnai, Tibor"]
[Result "1-0"]
[ECO "A05"]
[WhiteElo "2522"]
[BlackElo "2433"]
[Annotator "ChessBase"]
[PlyCount "63"]
[EventDate "2022.07.15"]
[EventType "swiss"]
[EventCountry "HUN"]
[SourceTitle "playchess.com"]
[Source "ChessBase"]
[SourceQuality "1"]
[TimeControl "900+10"]

1. Nf3 {[%emt 0:00:13]} Nf6 {[%emt 0:01:39]} 2. c4 {[%emt 0:00:03]} b6 {[%emt 0:00:14]} 3. g3 {[%emt 0:00:04]} Bb7 {[%emt 0:00:01]} 4. Bg2 {[%emt 0:00:02]} g6 {[%emt 0:00:01]} 5. O-O {[%emt 0:00:02]} Bg7 {[%emt 0:00:03]} 6. d4 {[%emt 0:00:01]} e6 {[%emt 0:00:01]} 7. Nc3 {[%emt 0:01:07]} Ne4 {[%emt 0:00:02]} 8. Nxe4 {[%emt 0:00:17]} Bxe4 {[%emt 0:00:02]} 9. Bg5 {[%emt 0:00:02]} f6 {[%emt 0:00:26]} 10. Bf4 {[%emt 0:00:52]} O-O {[%emt 0:00:08]} 11. Qd2 {[%emt 0:01:31]} Nc6 {[%emt 0:01:57]} 12. Rfd1 {[%emt 0:00:50]} Ne7 {[%emt 0:01:01]} 13. Rac1 {[%emt 0:00:22]} g5 {[%emt 0:00:54]} 14. Be3 {[%emt 0:00:11]} Nf5 {[%emt 0:00:04]} 15. d5 {[%emt 0:00:35]} e5 {[%emt 0:00:53]} 16. c5 {[%emt 0:01:07]} h6 {[%emt 0:01:19]} 17. b4 {[%emt 0:04:30]} a5 {[%emt 0:00:50]} 18. b5 {[%emt 0:00:28]} Bxf3 {[%emt 0:03:59]} 19. Bxf3 {[%emt 0:00:05]} Nxe3 {[%emt 0:00:27]} 20. Qxe3 {[%emt 0:00:02]} f5 {[%emt 0:00:01]} 21. d6 {[%emt 0:00:11]} Rb8 {[%emt 0:00:29]} 22. c6 {[%emt 0:01:03]} dxc6 {[%emt 0:00:22]} 23. Rxc6 {[%emt 0:00:16]} cxd6 {[%emt 0:00:39]} 24. Rdxd6 {[%emt 0:00:03]} Qe7 {[%emt 0:00:27]} 25. Bd5+ {[%emt 0:00:02]} Kh7 {[%emt 0:00:08]} 26. Rxb6 {[%emt 0:01:01]} Rbd8 {[%emt 0:00:49]} 27. Rxd8 {[%emt 0:00:50]} Rxd8 {[%emt 0:00:02]} 28. Qf3 {[%emt 0:02:16]} Rf8 {[%emt 0:00:21]} 29. Qh5 {[%emt 0:01:01]} Rf6 {[%emt 0:00:10]} 30. Rxf6 {[%emt 0:00:03]} Qxf6 {[%emt 0:00:05]} 31. Qe8 {[%emt 0:00:05]} Qf8 {[%emt 0:00:13]} 32. Qd7 {[%emt 0:00:07]} 1-0

[Event "Hungarian Rapid-ch 2022"]
[Site "Ajka"]
[Date "2022.07.16"]
[Round "9.6"]
[White "Horvath, Adam"]
[Black "Csiszar, Csaba"]
[Result "1/2-1/2"]
[ECO "B30"]
[WhiteElo "2520"]
[BlackElo "2389"]
[Annotator "ChessBase"]
[PlyCount "195"]
[EventDate "2022.07.15"]
[EventType "swiss"]
[EventCountry "HUN"]
[SourceTitle "playchess.com"]
[Source "ChessBase"]
[SourceQuality "1"]
[TimeControl "900+10"]

1. e4 {[%emt 0:00:12]} c5 {[%emt 0:00:11]} 2. Nf3 {[%emt 0:00:02]} Nc6 {[%emt 0:00:01]} 3. Bb5 {[%emt 0:00:01]} d6 {[%emt 0:00:01]} 4. O-O {[%emt 0:00:06]} Bd7 {[%emt 0:00:01]} 5. Re1 {[%emt 0:00:10]} Nf6 {[%emt 0:00:01]} 6. c3 {[%emt 0:00:10]} a6 {[%emt 0:00:01]} 7. Bc4 {[%emt 0:00:11]} b5 {[%emt 0:00:07]} 8. Bf1 {[%emt 0:00:02]} Bg4 {[%emt 0:00:10]} 9. d4 {[%emt 0:00:16]} cxd4 {[%emt 0:00:18]} 10. cxd4 {[%emt 0:00:02]} e5 {[%emt 0:00:07]} 11. Be3 {[%emt 0:01:39]} Be7 {[%emt 0:00:46]} 12. d5 {[%emt 0:00:50]} Nd4 {[%emt 0:00:10]} 13. Bxd4 {[%emt 0:00:45]} exd4 {[%emt 0:00:01]} 14. Nbd2 {[%emt 0:01:36]} Nd7 {[%emt 0:00:40]} 15. h3 {[%emt 0:02:07]} Bh5 {[%emt 0:00:01]} 16. a4 {[%emt 0:00:56]} bxa4 {[%emt 0:00:26]} 17. g4 {[%emt 0:00:14]} Bg6 {[%emt 0:00:01]} 18. Nxd4 {[%emt 0:00:02]} Bg5 {[%emt 0:00:21]} 19. N2f3 {[%emt 0:00:22]} Bf4 {[%emt 0:00:05]} 20. Nc6 {[%emt 0:04:04]} Qc7 {[%emt 0:01:47]} 21. Rxa4 {[%emt 0:00:25]} O-O {[%emt 0:01:08]} 22. Nh4 {[%emt 0:00:42]} Ne5 {[%emt 0:02:10]} 23. Ng2 {[%emt 0:00:18]} Nxc6 {[%emt 0:00:13]} 24. Rc4 {[%emt 0:00:31]} Qa7 {[%emt 0:03:59]} 25. Rxc6 {[%emt 0:00:08]} Be5 {[%emt 0:00:05]} 26. Rxa6 {[%emt 0:01:00]} Qc5 {[%emt 0:00:33]} 27. Rc6 {[%emt 0:00:03]} Qa7 {[%emt 0:00:03]} 28. b4 {[%emt 0:00:28]} Rfb8 {[%emt 0:00:26]} 29. b5 {[%emt 0:00:11]} Bd4 {[%emt 0:00:09]} 30. Qd2 {[%emt 0:00:10]} Bc5 {[%emt 0:00:26]} 31. Nf4 {[%emt 0:00:44]} Re8 {[%emt 0:00:22]} 32. Bg2 {[%emt 0:01:10]} Qa4 {[%emt 0:00:46]} 33. Nxg6 {[%emt 0:00:36]} hxg6 {[%emt 0:00:03]} 34. Qd3 {[%emt 0:00:19]} Rab8 {[%emt 0:00:25]} 35. Bf1 {[%emt 0:00:05]} Qa2 {[%emt 0:00:11]} 36. Re2 {[%emt 0:00:04]} Qa1 {[%emt 0:00:07]} 37. Kg2 {[%emt 0:00:04]} Re7 {[%emt 0:00:13]} 38. Rc2 {[%emt 0:00:05]} Qe5 {[%emt 0:01:47]} 39. f3 {[%emt 0:00:22]} Ra7 {[%emt 0:00:06]} 40. Ra6 {[%emt 0:00:18]} Rab7 {[%emt 0:00:10]} 41. Qc3 {[%emt 0:00:11]} Qf4 {[%emt 0:00:20]} 42. Rca2 {[%emt 0:00:08]} Rxb5 {[%emt 0:00:21]} 43. Bxb5 {[%emt 0:00:01]} Rxb5 {[%emt 0:00:01]} 44. Ra8+ {[%emt 0:00:06]} Kh7 {[%emt 0:00:00]} 45. Qd2 {[%emt 0:00:04]} Be3 {[%emt 0:00:06]} 46. Qe1 {[%emt 0:00:05]} g5 {[%emt 0:00:09]} 47. R8a3 {[%emt 0:00:24]} Bd4 {[%emt 0:00:19]} 48. e5 {[%emt 0:00:09]} Bxe5 {[%emt 0:00:21]} 49. Qe4+ {[%emt 0:00:05]} Qxe4 {[%emt 0:00:10]} 50. fxe4 {[%emt 0:00:01]} Rb4 {[%emt 0:00:03]} 51. Kf3 {[%emt 0:00:04]} Rb1 {[%emt 0:00:04]} 52. Rc2 {[%emt 0:00:08]} Rh1 {[%emt 0:00:06]} 53. Ra8 {[%emt 0:00:33]} Rxh3+ {[%emt 0:00:02]} 54. Ke2 {[%emt 0:00:00]} Rg3 {[%emt 0:00:11]} 55. Rc7 {[%emt 0:00:14]} Kg6 {[%emt 0:00:06]} 56. Raa7 {[%emt 0:00:07]} Rxg4 {[%emt 0:00:01]} 57. Rxf7 {[%emt 0:00:04]} Rxe4+ {[%emt 0:00:01]} 58. Kf3 {[%emt 0:00:10]} Rd4 {[%emt 0:00:03]} 59. Rfe7 {[%emt 0:00:02]} Rxd5 {[%emt 0:00:03]} 60. Re8 {[%emt 0:00:06]} Rd3+ {[%emt 0:00:03]} 61. Ke4 {[%emt 0:00:02]} Rd4+ {[%emt 0:00:01]} 62. Ke3 {[%emt 0:00:01]} Rb4 {[%emt 0:00:08]} 63. Ra6 {[%emt 0:00:05]} Kf5 {[%emt 0:00:09]} 64. Rf8+ {[%emt 0:00:02]} Kg6 {[%emt 0:00:14]} 65. Re8 {[%emt 0:00:12]} Bf4+ {[%emt 0:00:02]} 66. Kf3 {[%emt 0:00:03]} Rb3+ {[%emt 0:00:01]} 67. Kf2 {[%emt 0:00:02]} g4 {[%emt 0:00:03]} 68. Ra4 {[%emt 0:00:08]} Rb2+ {[%emt 0:00:01]} 69. Kf1 {[%emt 0:00:05]} Kf7 {[%emt 0:01:01]} 70. Rh8 {[%emt 0:00:34]} g5 {[%emt 0:00:02]} 71. Rh6 {[%emt 0:00:02]} Kg7 {[%emt 0:01:06]} 72. Re6 {[%emt 0:00:01]} g3 {[%emt 0:00:07]} 73. Ra7+ {[%emt 0:00:35]} Kf8 {[%emt 0:00:01]} 74. Re2 {[%emt 0:00:37]} Rxe2 {[%emt 0:00:30]} 75. Kxe2 {[%emt 0:00:01]} g2 {[%emt 0:00:01]} 76. Ra8+ {[%emt 0:00:01]} Ke7 {[%emt 0:00:04]} 77. Kf2 {[%emt 0:00:01]} Ke6 {[%emt 0:00:22]} 78. Kxg2 {[%emt 0:00:02]} Ke5 {[%emt 0:00:23]} 79. Kf3 {[%emt 0:00:03]} d5 {[%emt 0:00:05]} 80. Re8+ {[%emt 0:00:12]} Kd4 {[%emt 0:00:03]} 81. Rd8 {[%emt 0:00:02]} Kc4 {[%emt 0:00:01]} 82. Rc8+ {[%emt 0:00:02]} Kd3 {[%emt 0:00:02]} 83. Ra8 {[%emt 0:00:11]} d4 {[%emt 0:01:11]} 84. Ra3+ {[%emt 0:00:02]} Kc2 {[%emt 0:00:09]} 85. Ke4 {[%emt 0:00:23]} Be3 {[%emt 0:00:03]} 86. Ra5 {[%emt 0:00:28]} Kd2 {[%emt 0:00:09]} 87. Ra2+ {[%emt 0:00:45]} Kc3 {[%emt 0:00:04]} 88. Ra5 {[%emt 0:00:11]} Kc4 {[%emt 0:00:16]} 89. Ra8 {[%emt 0:00:07]} Kc3 {[%emt 0:00:05]} 90. Ra2 {[%emt 0:00:16]} Kb3 {[%emt 0:00:11]} 91. Ra5 {[%emt 0:00:21]} g4 {[%emt 0:00:12]} 92. Kd3 {[%emt 0:00:16]} g3 {[%emt 0:00:11]} 93. Rb5+ {[%emt 0:00:09]} Ka4 {[%emt 0:00:15]} 94. Rb2 {[%emt 0:00:14]} Bf2 {[%emt 0:00:09]} 95. Kc4 {[%emt 0:00:07]} Ka3 {[%emt 0:00:07]} 96. Rb3+ {[%emt 0:00:05]} Ka2 {[%emt 0:00:05]} 97. Rxg3 {[%emt 0:00:03]} Bxg3 {[%emt 0:00:03]} 98. Kxd4 1/2-1/2

[Event "Hungarian Rapid-ch 2022"]
[Site "Ajka"]
[Date "2022.07.16"]
[Round "9.7"]
[White "Bagi, Mate"]
[Black "Leviczky, Tibor"]
[Result "1/2-1/2"]
[ECO "B41"]
[WhiteElo "2460"]
[BlackElo "2281"]
[Annotator "ChessBase"]
[PlyCount "64"]
[EventDate "2022.07.15"]
[EventType "swiss"]
[EventCountry "HUN"]
[SourceTitle "playchess.com"]
[Source "ChessBase"]
[SourceQuality "1"]
[TimeControl "900+10"]

1. e4 {[%emt 0:00:13]} c5 {[%emt 0:00:12]} 2. Nf3 {[%emt 0:00:02]} e6 {[%emt 0:00:01]} 3. d4 {[%emt 0:00:01]} cxd4 {[%emt 0:00:02]} 4. Nxd4 {[%emt 0:00:02]} a6 {[%emt 0:00:01]} 5. Be2 {[%emt 0:00:12]} Nf6 {[%emt 0:00:37]} 6. Nc3 {[%emt 0:00:02]} Qc7 {[%emt 0:00:14]} 7. f4 {[%emt 0:00:27]} d6 {[%emt 0:00:06]} 8. O-O {[%emt 0:00:26]} Be7 {[%emt 0:01:07]} 9. Be3 {[%emt 0:01:01]} O-O {[%emt 0:00:38]} 10. a4 {[%emt 0:00:18]} Nc6 {[%emt 0:00:13]} 11. Kh1 {[%emt 0:00:07]} Rb8 {[%emt 0:01:07]} 12. Bf3 {[%emt 0:00:28]} Rd8 {[%emt 0:01:04]} 13. Nb3 {[%emt 0:01:07]} b6 {[%emt 0:00:12]} 14. g4 {[%emt 0:00:33]} Bb7 {[%emt 0:00:05]} 15. g5 {[%emt 0:00:04]} Nd7 {[%emt 0:00:02]} 16. Bg2 {[%emt 0:00:11]} Nb4 {[%emt 0:03:30]} 17. Rf2 {[%emt 0:00:46]} Nc5 {[%emt 0:00:12]} 18. Nd4 {[%emt 0:00:22]} d5 {[%emt 0:01:08]} 19. e5 {[%emt 0:00:41]} Ne4 {[%emt 0:00:14]} 20. Nxe4 {[%emt 0:01:39]} dxe4 {[%emt 0:00:03]} 21. Rd2 {[%emt 0:00:16]} Bc5 {[%emt 0:01:11]} 22. Qe2 {[%emt 0:02:29]} Nd5 {[%emt 0:00:44]} 23. c3 {[%emt 0:00:16]} Bxd4 {[%emt 0:01:49]} 24. cxd4 {[%emt 0:01:56]} Ne7 {[%emt 0:01:00]} 25. Bg1 {[%emt 0:01:22]} Nf5 {[%emt 0:00:25]} 26. Rc2 {[%emt 0:00:49]} Qe7 {[%emt 0:00:12]} 27. Rac1 {[%emt 0:00:29]} Nxd4 {[%emt 0:00:54]} 28. Bxd4 {[%emt 0:00:02]} Rxd4 {[%emt 0:00:01]} 29. Rc7 {[%emt 0:00:19]} Rd7 {[%emt 0:00:10]} 30. Qc4 {[%emt 0:01:12]} g6 {[%emt 0:00:55]} 31. Rxd7 {[%emt 0:00:29]} Qxd7 {[%emt 0:00:02]} 32. Qc7 {[%emt 0:00:10]} Qxc7 1/2-1/2